fUST/lending_fUST_20250729
["ID","MTS","AMOUNT","RATE_DAILY","PERIOD"]
[375906207,1753780035268,-367.92514949,0.00018799,2]
[375906208,1753780035291,-92.07485051,0.000188,2]
[375906209,1753780038038,-183.31262226,0.000188,2]
[375906210,1753780044676,-352.86922499,0.000188,2]
[375906211,1753780044700,-107.13077501,0.000188,2]
[375906217,1753780164995,280.9925343,0.00017869,2]
[375906284,1753780231858,-3873.7,0.000187,2]
[375906287,1753780231875,-1153.3,0.000187,2]
[375906289,1753780231884,-454.9658173,0.00018781,2]
[375906291,1753780231893,-300.0,0.00018799,2]
[375906293,1753780231903,-300.0,0.00018799,2]
[375906295,1753780231912,-300.0,0.00018799,2]
[375906297,1753780231921,-300.0,0.00018799,2]
[375906299,1753780231931,-1200.0,0.00018799,2]
[375906301,1753780231941,-502.6053582,0.000188,2]
[375906303,1753780231950,-193.75062072,0.00018867,2]
[375906305,1753780231959,-191.58,0.00018868,3]
[375906307,1753780231969,-574.74,0.00018868,3]
[375906309,1753780231979,-372.54765473,0.00018873,2]
[375906311,1753780231994,-376.82678838,0.00018873,2]
[375906312,1753780232006,-831.79205002,0.00018873,2]
[375906314,1753780232015,-500.0,0.00018873,2]
[375906315,1753780232024,-500.0,0.00018873,2]
[375906319,1753780232034,-500.35414614,0.00018873,2]
[375906321,1753780232044,-501.63281376,0.00018873,2]
[375906323,1753780232054,-500.0,0.00018873,2]
[375906326,1753780232064,-500.0,0.00018873,2]
[375906329,1753780232073,-500.0,0.00018873,2]
[375906331,1753780232082,-500.0,0.00018873,2]
[375906334,1753780232092,-500.0,0.00018873,2]
[375906337,1753780232101,-500.0,0.00018873,2]
[375906340,1753780232111,-500.0,0.00018873,2]
[375906343,1753780232120,-503.24101679,0.00018873,2]
[375906345,1753780232129,-582.21519902,0.00018873,2]
[375906363,1753780232281,-500.0,0.00018873,2]
[375906365,1753780232292,-500.0,0.00018873,2]
[375906367,1753780232301,-500.0,0.00018873,2]
[375906369,1753780232311,-500.33812626,0.00018873,2]
[375906371,1753780232321,-500.0,0.00018873,2]
[375906373,1753780232330,-500.0,0.00018873,2]
[375906375,1753780232341,-510.47023454,0.00018873,2]
[375906377,1753780232351,-370000.0,0.00018878,2]
[375906379,1753780232361,-1932.33816076,0.000189,2]
[375906381,1753780232370,-552.23407177,0.000189,2]
[375906383,1753780232380,-177.0,0.00018959,3]
[375906385,1753780232390,-552.23407176,0.00019107,2]
[375906387,1753780232400,-501.01943038,0.00019173,2]
[375906389,1753780232410,-500.0,0.00019173,2]
[375906391,1753780232420,-500.0,0.00019173,2]
[375906393,1753780232429,-500.0,0.00019173,2]
[375906395,1753780232438,-200.0,0.00019175,15]
[375906397,1753780232450,-200.0,0.00019175,15]
[375906399,1753780232460,-200.0,0.00019175,15]
[375906401,1753780232469,-200.0,0.00019175,15]
[375906402,1753780232479,-500.0,0.00019177,2]
[375906403,1753780232489,-500.0,0.00019177,2]
[375906404,1753780232500,-500.0,0.00019177,2]
[375906405,1753780232509,-500.0,0.00019177,2]
[375906406,1753780232519,-359.75344919,0.00019177,2]
[375906407,1753780232528,-500.0,0.00019177,2]
[375906408,1753780232538,-199.3499585,0.00019177,2]
[375906409,1753780232548,-500.0,0.00019177,2]
[375906411,1753780232558,-500.0,0.00019177,2]
[375906412,1753780232567,-500.0,0.00019177,2]
[375906413,1753780232577,-300.0,0.00019177,2]
[375906414,1753780232586,-500.0,0.00019177,2]
[375906415,1753780232596,-500.0,0.00019177,2]
[375906416,1753780232609,-500.0,0.00019177,2]
[375906417,1753780232619,-467.95277359,0.00019177,2]
[375906418,1753780232629,-500.0,0.00019177,2]
[375906419,1753780232639,-500.0,0.00019177,2]
[375906420,1753780232648,-500.0,0.00019177,2]
[375906421,1753780232658,-500.0,0.00019177,2]
[375906422,1753780232668,-625.78961914,0.00019177,2]
[375906423,1753780232677,-500.0,0.00019177,2]
[375906424,1753780232687,-500.0,0.00019177,2]
[375906425,1753780232697,-177.49570467,0.00019177,2]
[375906426,1753780232706,-500.0,0.00019177,2]
[375906427,1753780232716,-460.0,0.00019178,2]
[375906428,1753780232725,-462.91987269,0.00019178,2]
[375906429,1753780232733,-460.0,0.00019178,2]
[375906430,1753780232742,-460.0,0.00019178,2]
[375906431,1753780232751,-460.0,0.00019178,2]
[375906432,1753780232760,-460.0,0.00019178,2]
[375906433,1753780232769,-460.0,0.00019178,2]
[375906434,1753780232778,-460.0,0.00019178,2]
[375906435,1753780232787,-469.67885885,0.00019178,2]
[375906436,1753780232798,-460.0,0.00019178,2]
[375906437,1753780232808,-460.0,0.00019178,2]
[375906438,1753780232818,-460.0,0.00019178,2]
[375906439,1753780232827,-460.0,0.00019178,2]
[375906440,1753780232837,-460.0,0.00019178,2]
[375906441,1753780232846,-460.0,0.00019178,2]
[375906442,1753780232857,-460.0,0.00019178,2]
[375906443,1753780232866,-460.0,0.00019178,2]
[375906444,1753780232876,-562.87169355,0.00019178,2]
[375906445,1753780232887,-460.0,0.00019178,2]
[375906446,1753780232897,-504.89584537,0.00019178,2]
[375906447,1753780232907,-460.0,0.00019178,2]
[375906448,1753780232917,-460.0,0.00019178,2]
[375906449,1753780232926,-460.0,0.00019178,2]
[375906450,1753780232936,-460.0,0.00019178,2]
[375906451,1753780232945,-460.0,0.00019178,2]
[375906452,1753780232955,-460.0,0.00019178,2]
[375906453,1753780232965,-586.18401204,0.00019178,2]
[375906454,1753780232974,-460.0,0.00019178,2]
[375906455,1753780232984,-460.0,0.00019178,2]
[375906456,1753780232994,-500.0,0.00019178,2]
[375906457,1753780233003,-232.10493919,0.00019178,2]
[375906458,1753780233013,-460.0,0.00019178,2]
[375906459,1753780233023,-460.0,0.00019178,2]
[375906460,1753780233032,-460.0,0.00019178,2]
[375906461,1753780233041,-460.0,0.00019178,2]
[375906462,1753780233052,-460.0,0.00019178,2]
[375906463,1753780233062,-460.0,0.00019178,2]
[375906464,1753780233072,-460.0,0.00019178,2]
[375906465,1753780233082,-460.0,0.00019178,2]
[375906466,1753780233092,-460.0,0.00019178,2]
[375906467,1753780233101,-460.0,0.00019178,2]
[375906468,1753780233111,-460.0,0.00019178,2]
[375906469,1753780233121,-477.47910638,0.00019178,2]
[375906470,1753780233130,-460.0,0.00019178,2]
[375906471,1753780233140,-460.0,0.00019178,2]
[375906472,1753780233150,-460.0,0.00019178,2]
[375906473,1753780233160,-460.0,0.00019178,2]
[375906474,1753780233170,-460.0,0.00019178,2]
[375906475,1753780233179,-460.0,0.00019178,2]
[375906476,1753780233188,-460.0,0.00019178,2]
[375906477,1753780233198,-460.0,0.00019178,2]
[375906478,1753780233208,-460.0,0.00019178,2]
[375906479,1753780233217,-460.0,0.00019178,2]
[375906480,1753780233227,-908.95,0.00019178,2]
[375906481,1753780233237,-460.0,0.00019178,2]
[375906482,1753780233247,-487.77,0.00019178,2]
[375906483,1753780233257,-329.07869915,0.00019178,2]
[375906484,1753780233267,-460.0,0.00019178,2]
[375906485,1753780233277,-460.0,0.00019178,2]
[375906486,1753780233287,-460.0,0.00019178,2]
[375906487,1753780233297,-460.0,0.00019178,2]
[375906488,1753780233307,-460.0,0.00019178,2]
[375906489,1753780233317,-460.0,0.00019178,2]
[375906490,1753780233326,-460.0,0.00019178,2]
[375906491,1753780233336,-460.0,0.00019178,2]
[375906492,1753780233346,-460.0,0.00019178,2]
[375906493,1753780233356,-460.0,0.00019178,2]
[375906494,1753780233366,-460.0,0.00019178,2]
[375906495,1753780233376,-460.0,0.00019178,2]
[375906496,1753780233386,-460.0,0.00019178,2]
[375906497,1753780233396,-460.0,0.00019178,2]
[375906498,1753780233406,-460.0,0.00019178,2]
[375906499,1753780233415,-460.0,0.00019178,2]
[375906500,1753780233425,-568.69846706,0.00019178,2]
[375906501,1753780233435,-460.0,0.00019178,2]
[375906502,1753780233444,-460.0,0.00019178,2]
[375906503,1753780233454,-460.0,0.00019178,2]
[375906504,1753780233464,-460.0,0.00019178,2]
[375906505,1753780233474,-460.0,0.00019178,2]
[375906506,1753780233483,-538.16046026,0.00019178,2]
[375906507,1753780233493,-463.56213255,0.00019178,2]
[375906508,1753780233503,-460.0,0.00019178,2]
[375906509,1753780233512,-460.0,0.00019178,2]
[375906510,1753780233521,-1034.42,0.00019178,2]
[375906511,1753780233532,-460.0,0.00019178,2]
[375906512,1753780233541,-251.31249488,0.00019178,2]
[375906513,1753780233553,-460.0,0.00019178,2]
[375906514,1753780233564,-460.0,0.00019178,2]
[375906515,1753780233574,-460.0,0.00019178,2]
[375906516,1753780233585,-461.21997159,0.00019178,2]
[375906517,1753780233596,-460.0,0.00019178,2]
[375906518,1753780233607,-407.18596913,0.00019178,2]
[375906519,1753780233617,-503.62,0.00019178,2]
[375906520,1753780233626,-460.0,0.00019178,2]
[375906521,1753780233636,-460.0,0.00019178,2]
[375906522,1753780233646,-460.0,0.00019178,2]
[375906523,1753780233656,-460.0,0.00019178,2]
[375906524,1753780233666,-460.0,0.00019178,2]
[375906525,1753780233676,-460.0,0.00019178,2]
[375906526,1753780233687,-460.0,0.00019178,2]
[375906527,1753780233697,-460.0,0.00019178,2]
[375906528,1753780233707,-460.0,0.00019178,2]
[375906529,1753780233717,-460.0,0.00019178,2]
[375906530,1753780233726,-460.0,0.00019178,2]
[375906531,1753780233736,-460.0,0.00019178,2]
[375906532,1753780233745,-460.0,0.00019178,2]
[375906533,1753780233755,-460.0,0.00019178,2]
[375906534,1753780233766,-460.0,0.00019178,2]
[375906535,1753780233777,-460.0,0.00019178,2]
[375906536,1753780233787,-460.0,0.00019178,2]
[375906537,1753780233797,-460.0,0.00019178,2]
[375906538,1753780233810,-460.0,0.00019178,2]
[375906539,1753780233820,-460.0,0.00019178,2]
[375906540,1753780233829,-460.0,0.00019178,2]
[375906541,1753780233839,-460.0,0.00019178,2]
[375906542,1753780233849,-460.0,0.00019178,2]
[375906543,1753780233859,-460.0,0.00019178,2]
[375906544,1753780233869,-460.0,0.00019178,2]
[375906545,1753780233879,-460.0,0.00019178,2]
[375906546,1753780233888,-460.0,0.00019178,2]
[375906547,1753780233898,-460.0,0.00019178,2]
[375906548,1753780233908,-532.88261475,0.00019178,2]
[375906549,1753780233918,-460.0,0.00019178,2]
[375906550,1753780233927,-460.0,0.00019178,2]
[375906551,1753780233937,-460.0,0.00019178,2]
[375906552,1753780233948,-460.0,0.00019178,2]
[375906553,1753780233959,-460.0,0.00019178,2]
[375906554,1753780233968,-156.0624735,0.00019178,2]
[375906555,1753780233978,-460.0,0.00019178,2]
[375906556,1753780233987,-460.0,0.00019178,2]
[375906557,1753780233996,-460.0,0.00019178,2]
[375906558,1753780234005,-465.54516556,0.00019178,2]
[375906559,1753780234015,-460.0,0.00019178,2]
[375906560,1753780234025,-173.6173972,0.00019178,2]
[375906561,1753780234034,-460.0,0.00019178,2]
[375906562,1753780234043,-2673.69,0.00019178,2]
[375906563,1753780234054,-460.0,0.00019178,2]
[375906564,1753780234063,-460.0,0.00019178,2]
[375906565,1753780234072,-460.0,0.00019178,2]
[375906566,1753780234082,-460.0,0.00019178,2]
[375906567,1753780234091,-460.0,0.00019178,2]
[375906568,1753780234100,-460.0,0.00019178,2]
[375906569,1753780234110,-460.0,0.00019178,2]
[375906570,1753780234120,-460.0,0.00019178,2]
[375906571,1753780234129,-460.0,0.00019178,2]
[375906572,1753780234140,-460.0,0.00019178,2]
[375906573,1753780234150,-460.0,0.00019178,2]
[375906574,1753780234159,-460.0,0.00019178,2]
[375906575,1753780234169,-1297.24,0.00019178,2]
[375906576,1753780234179,-460.0,0.00019178,2]
[375906577,1753780234188,-213.10423497,0.00019178,2]
[375906578,1753780234198,-460.0,0.00019178,2]
[375906579,1753780234208,-460.0,0.00019178,2]
[375906580,1753780234218,-460.0,0.00019178,2]
[375906581,1753780234228,-460.0,0.00019178,2]
[375906582,1753780234238,-460.0,0.00019178,2]
[375906583,1753780234248,-460.0,0.00019178,2]
[375906584,1753780234259,-460.0,0.00019178,2]
[375906585,1753780234269,-460.0,0.00019178,2]
[375906586,1753780234279,-460.0,0.00019178,2]
[375906587,1753780234290,-482.48081245,0.00019178,2]
[375906588,1753780234300,-460.0,0.00019178,2]
[375906589,1753780234311,-983.85,0.00019178,2]
[375906590,1753780234321,-460.0,0.00019178,2]
[375906591,1753780234331,-460.0,0.00019178,2]
[375906592,1753780234341,-460.0,0.00019178,2]
[375906593,1753780234351,-460.0,0.00019178,2]
[375906594,1753780234360,-509.85614979,0.00019178,2]
[375906595,1753780234371,-460.0,0.00019178,2]
[375906596,1753780234380,-460.0,0.00019178,2]
[375906597,1753780234389,-460.0,0.00019178,2]
[375906598,1753780234399,-460.0,0.00019178,2]
[375906599,1753780234409,-465.42611784,0.00019178,2]
[375906600,1753780234418,-549.51656381,0.00019178,2]
[375906601,1753780234427,-460.0,0.00019178,2]
[375906602,1753780234436,-460.0,0.00019178,2]
[375906603,1753780234446,-460.0,0.00019178,2]
[375906604,1753780234455,-460.0,0.00019178,2]
[375906605,1753780234465,-605.76887846,0.00019178,2]
[375906606,1753780234474,-460.0,0.00019178,2]
[375906607,1753780234483,-315.77804055,0.00019178,2]
[375906608,1753780234492,-460.0,0.00019178,2]
[375906609,1753780234502,-460.0,0.00019178,2]
[375906610,1753780234511,-460.0,0.00019178,2]
[375906611,1753780234522,-460.0,0.00019178,2]
[375906612,1753780234531,-460.0,0.00019178,2]
[375906613,1753780234541,-460.0,0.00019178,2]
[375906614,1753780234551,-461.45933676,0.00019178,2]
[375906615,1753780234560,-460.0,0.00019178,2]
[375906616,1753780234571,-2117.22389636,0.00019178,2]
[375906617,1753780234580,-460.0,0.00019178,2]
[375906618,1753780234589,-460.0,0.00019178,2]
[375906619,1753780234598,-460.0,0.00019178,2]
[375906620,1753780234610,-460.0,0.00019178,2]
[375906621,1753780234620,-475.61987915,0.00019178,2]
[375906622,1753780234629,-460.0,0.00019178,2]
[375906623,1753780234639,-282.86098395,0.00019178,2]
[375906624,1753780234648,-188.25214472,0.00019178,2]
[375906625,1753780234657,-460.0,0.00019178,2]
[375906626,1753780234666,-460.0,0.00019178,2]
[375906627,1753780234676,-460.0,0.00019178,2]
[375906628,1753780234686,-460.0,0.00019178,2]
[375906629,1753780234695,-460.0,0.00019178,2]
[375906630,1753780234704,-460.0,0.00019178,2]
[375906631,1753780234714,-460.0,0.00019178,2]
[375906632,1753780234723,-460.0,0.00019178,2]
[375906633,1753780234732,-460.0,0.00019178,2]
[375906634,1753780234743,-460.0,0.00019178,2]
[375906635,1753780234752,-460.0,0.00019178,2]
[375906636,1753780234762,-307.44839997,0.00019178,2]
[375906702,1753780238101,-168.51423862,0.00019178,2]
[375906704,1753780238111,-460.0,0.00019178,2]
[375906706,1753780238121,-460.0,0.00019178,2]
[375906708,1753780238131,-176.34252584,0.00019178,2]
[375906709,1753780238140,-460.0,0.00019178,2]
[375906710,1753780238149,-168.29699378,0.00019178,2]
[375906711,1753780238159,-460.0,0.00019178,2]
[375906713,1753780238168,-1684.66,0.00019178,2]
[375906715,1753780238177,-792.11,0.00019178,2]
[375906717,1753780238187,-625.45,0.00019178,2]
[375906719,1753780238197,-460.0,0.00019178,2]
[375906721,1753780238207,-460.0,0.00019178,2]
[375906723,1753780238216,-460.0,0.00019178,2]
[375906725,1753780238226,-2624.58,0.00019178,2]
[375906727,1753780238235,-460.0,0.00019178,2]
[375906729,1753780238244,-3399.41,0.00019178,2]
[375906731,1753780238254,-320.0,0.00019178,2]
[375906733,1753780238264,-602.12,0.00019178,2]
[375906735,1753780238273,-460.0,0.00019178,2]
[375906737,1753780238283,-460.0,0.00019178,2]
[375906739,1753780238293,-460.0,0.00019178,2]
[375906741,1753780238302,-460.0,0.00019178,2]
[375906743,1753780238313,-460.0,0.00019178,2]
[375906745,1753780238322,-460.0,0.00019178,2]
[375906747,1753780238332,-460.0,0.00019178,2]
[375906749,1753780238342,-460.0,0.00019178,2]
[375906751,1753780238354,-466.65355166,0.00019178,2]
[375906753,1753780238364,-460.0,0.00019178,2]
[375906755,1753780238373,-460.0,0.00019178,2]
[375906757,1753780238383,-460.0,0.00019178,2]
[375906759,1753780238392,-549.1,0.00019178,2]
[375906761,1753780238402,-529.98382494,0.00019178,2]
[375906763,1753780238411,-460.0,0.00019178,2]
[375906765,1753780238420,-460.0,0.00019178,2]
[375906767,1753780238429,-460.0,0.00019178,2]
[375906768,1753780238439,-460.0,0.00019178,2]
[375906770,1753780238448,-506.87,0.00019178,2]
[375906772,1753780238457,-460.0,0.00019178,2]
[375906774,1753780238466,-460.0,0.00019178,2]
[375906776,1753780238476,-2106.18,0.00019178,2]
[375906777,1753780238485,-460.0,0.00019178,2]
[375906778,1753780238494,-460.0,0.00019178,2]
[375906779,1753780238504,-645.31,0.00019178,2]
[375906780,1753780238514,-460.0,0.00019178,2]
[375906781,1753780238523,-460.0,0.00019178,2]
[375906782,1753780238532,-460.0,0.00019178,2]
[375906783,1753780238541,-460.0,0.00019178,2]
[375906784,1753780238551,-460.0,0.00019178,2]
[375906785,1753780238562,-449.07316955,0.00019178,2]
[375906786,1753780238571,-460.0,0.00019178,2]
[375906787,1753780238580,-460.0,0.00019178,2]
[375906788,1753780238589,-460.0,0.00019178,2]
[375906789,1753780238601,-1193.76,0.00019178,2]
[375906790,1753780238612,-460.0,0.00019178,2]
[375906791,1753780238621,-460.0,0.00019178,2]
[375906792,1753780238631,-460.0,0.00019178,2]
[375906794,1753780238641,-499.26,0.00019178,2]
[375906796,1753780238650,-460.0,0.00019178,2]
[375906798,1753780238660,-954.09,0.00019178,2]
[375906800,1753780238669,-460.0,0.00019178,2]
[375906802,1753780238679,-2875.32,0.00019178,2]
[375906804,1753780238689,-460.0,0.00019178,2]
[375906806,1753780238698,-894.87,0.00019178,2]
[375906808,1753780238708,-460.0,0.00019178,2]
[375906810,1753780238717,-460.0,0.00019178,2]
[375906812,1753780238726,-460.0,0.00019178,2]
[375906814,1753780238736,-464.02717962,0.00019178,2]
[375906816,1753780238745,-460.0,0.00019178,2]
[375906818,1753780238754,-460.0,0.00019178,2]
[375906819,1753780238763,-460.0,0.00019178,2]
[375906821,1753780238773,-460.0,0.00019178,2]
[375906823,1753780238783,-460.0,0.00019178,2]
[375906825,1753780238793,-460.0,0.00019178,2]
[375906827,1753780238803,-460.0,0.00019178,2]
[375906829,1753780238813,-759.12,0.00019178,2]
[375906831,1753780238822,-461.19168358,0.00019178,2]
[375906833,1753780238831,-460.0,0.00019178,2]
[375906835,1753780238840,-460.0,0.00019178,2]
[375906837,1753780238850,-460.0,0.00019178,2]
[375906839,1753780238860,-460.0,0.00019178,2]
[375906841,1753780238870,-460.0,0.00019178,2]
[375906843,1753780238879,-462.31412239,0.00019178,2]
[375906845,1753780238889,-460.0,0.00019178,2]
[375906847,1753780238899,-943.57,0.00019178,2]
[375906849,1753780238909,-460.0,0.00019178,2]
[375906851,1753780238919,-460.0,0.00019178,2]
[375906853,1753780238928,-2260.06,0.00019178,2]
[375906855,1753780238938,-460.0,0.00019178,2]
[375906857,1753780238947,-460.0,0.00019178,2]
[375906859,1753780238956,-460.0,0.00019178,2]
[375906861,1753780238966,-460.0,0.00019178,2]
[375906863,1753780238975,-460.0,0.00019178,2]
[375906865,1753780238984,-460.0,0.00019178,2]
[375906867,1753780238993,-1967.29,0.00019178,2]
[375906869,1753780239002,-460.0,0.00019178,2]
[375906871,1753780239011,-889.21,0.00019178,2]
[375906873,1753780239021,-460.0,0.00019178,2]
[375906875,1753780239030,-460.0,0.00019178,2]
[375906877,1753780239039,-460.0,0.00019178,2]
[375906879,1753780239048,-460.0,0.00019178,2]
[375906880,1753780239059,-460.0,0.00019178,2]
[375906882,1753780239068,-2125.14,0.00019178,2]
[375906884,1753780239078,-460.0,0.00019178,2]
[375906886,1753780239088,-460.0,0.00019178,2]
[375906888,1753780239098,-460.0,0.00019178,2]
[375906890,1753780239108,-710.26,0.00019178,2]
[375906892,1753780239118,-827.95,0.00019178,2]
[375906894,1753780239127,-460.0,0.00019178,2]
[375906896,1753780239137,-460.0,0.00019178,2]
[375906898,1753780239146,-510.92,0.00019178,2]
[375906900,1753780239155,-460.0,0.00019178,2]
[375906902,1753780239163,-460.0,0.00019178,2]
[375906904,1753780239172,-176.82653831,0.00019178,2]
[375906906,1753780239181,-460.0,0.00019178,2]
[375906908,1753780239189,-460.0,0.00019178,2]
[375906910,1753780239199,-460.0,0.00019178,2]
[375906912,1753780239210,-460.0,0.00019178,2]
[375906914,1753780239219,-531.37720024,0.00019178,2]
[375906916,1753780239229,-460.0,0.00019178,2]
[375906918,1753780239238,-460.0,0.00019178,2]
[375906920,1753780239247,-460.0,0.00019178,2]
[375906922,1753780239257,-460.0,0.00019178,2]
[375906924,1753780239266,-460.0,0.00019178,2]
[375906926,1753780239275,-2155.88,0.00019178,2]
[375906928,1753780239285,-460.0,0.00019178,2]
[375906930,1753780239294,-460.0,0.00019178,2]
[375906932,1753780239305,-460.0,0.00019178,2]
[375906934,1753780239314,-460.0,0.00019178,2]
[375906936,1753780239324,-460.0,0.00019178,2]
[375906938,1753780239333,-460.0,0.00019178,2]
[375906940,1753780239343,-966.44,0.00019178,2]
[375906942,1753780239353,-2486.82,0.00019178,2]
[375906943,1753780239362,-6741.97,0.00019178,2]
[375906945,1753780239372,-460.0,0.00019178,2]
[375906947,1753780239381,-460.0,0.00019178,2]
[375906949,1753780239390,-460.0,0.00019178,2]
[375906951,1753780239400,-566.3,0.00019178,2]
[375906953,1753780239409,-460.0,0.00019178,2]
[375906955,1753780239419,-464.0589326,0.00019178,2]
[375906957,1753780239429,-744.14,0.00019178,2]
[375906959,1753780239438,-460.0,0.00019178,2]
[375906961,1753780239447,-5502.28,0.00019178,2]
[375906963,1753780239458,-460.0,0.00019178,2]
[375906965,1753780239467,-562.72875358,0.00019178,2]
[375906967,1753780239476,-460.0,0.00019178,2]
[375906969,1753780239486,-460.0,0.00019178,2]
[375906971,1753780239496,-460.0,0.00019178,2]
[375906973,1753780239505,-460.0,0.00019178,2]
[375906975,1753780239515,-460.0,0.00019178,2]
[375906977,1753780239525,-517.05424313,0.00019178,2]
[375906979,1753780239534,-539.86,0.00019178,2]
[375906981,1753780239543,-460.0,0.00019178,2]
[375906983,1753780239552,-1017.9,0.00019178,2]
[375906985,1753780239562,-460.0,0.00019178,2]
[375906987,1753780239572,-514.4,0.00019178,2]
[375906989,1753780239581,-460.88885659,0.00019178,2]
[375906991,1753780239590,-460.0,0.00019178,2]
[375906993,1753780239602,-460.0,0.00019178,2]
[375906995,1753780239611,-460.0,0.00019178,2]
[375906996,1753780239620,-460.0,0.00019178,2]
[375906998,1753780239629,-460.0,0.00019178,2]
[375907000,1753780239639,-1058.61194819,0.00019178,2]
[375907002,1753780239649,-460.0,0.00019178,2]
[375907004,1753780239659,-187.972095,0.00019178,2]
[375907006,1753780239668,-500.0,0.00019178,2]
[375907008,1753780239679,-5000.0,0.00019178,2]
[375907010,1753780239690,-25000.0,0.000193,2]
[375907012,1753780239700,-151.0,0.000193,2]
[375907014,1753780239709,-151.0,0.000193,2]
[375907016,1753780239719,-151.0,0.000193,2]
[375907018,1753780239729,-151.0,0.000193,2]
[375907020,1753780239738,-151.0,0.000193,2]
[375907022,1753780239748,-151.0,0.000193,2]
[375907024,1753780239758,-151.0,0.000193,2]
[375907026,1753780239767,-151.0,0.000193,2]
[375907028,1753780239776,-151.0,0.000193,2]
[375907030,1753780239786,-151.0,0.000193,2]
[375907032,1753780239796,-152.89295773,0.000193,2]
[375907034,1753780239806,-552.23407176,0.00019314,2]
[375907036,1753780239816,-4162.12149868,0.00019329,2]
[375907039,1753780239832,-1233.78435309,0.00019329,2]
[375907041,1753780239848,-253.46414823,0.00019329,2]
[375907043,1753780239857,-370.9975937,0.00019421,2]
[375907045,1753780239866,-1000.0,0.00019421,2]
[375907047,1753780239876,-1000.0,0.00019421,2]
[375907048,1753780239885,-264.40288234,0.00019421,2]
[375907049,1753780239950,-361.19748624,0.00019178,2]
[375907052,1753780240188,-98.80251376,0.00019178,2]
[375907053,1753780240199,-0.48328156,0.00019421,2]
[375907448,1753780246093,-512.73233705,0.000188,2]
[375907450,1753780246104,-751.35465768,0.000188,2]
[375907452,1753780246114,-460.0,0.00019178,2]
[375907454,1753780246123,-492.97,0.00019178,2]
[375907456,1753780246132,-202.82789587,0.00019178,2]
[375907458,1753780246142,-460.0,0.00019178,2]
[375907460,1753780246151,-241.04409827,0.00019421,2]
[375907462,1753780246160,-500.0,0.00019421,2]
[375907463,1753780246169,-1000.0,0.00019421,2]
[375907464,1753780246178,-500.0,0.00019421,2]
[375907465,1753780246187,-1000.0,0.00019421,2]
[375907466,1753780246196,-529.30597409,0.00019421,2]
[375907467,1753780246205,-460.0,0.00019452,2]
[375907468,1753780246214,-460.0,0.00019452,2]
[375907469,1753780246224,-460.0,0.00019452,2]
[375907470,1753780246233,-460.0,0.00019452,2]
[375907471,1753780246242,-460.0,0.00019452,2]
[375907472,1753780246252,-460.0,0.00019452,2]
[375907473,1753780246261,-460.0,0.00019452,2]
[375907474,1753780246270,-460.0,0.00019452,2]
[375907475,1753780246279,-160.12906897,0.00019452,2]
[375907476,1753780246288,-460.0,0.00019452,2]
[375907477,1753780246298,-460.0,0.00019452,2]